[Event "Kvibergspelen 2018"]
[Site "Prioritet Serneke Arena, Krutvagen 2, Gothenburg, Sweden"]
[Date "2018.04.20"]
[Round "1.6"]
[White "Rasti, Arvin"]
[Black "Lindberg, Bengt"]
[Result "1/2-1/2"]
[TimeControl "15 minutes + 5 seconds per move from move one (Round 1 - 4) / 90 minutes + 30 seconds per move from move one (Round 5 - 8)"]
[BlackTitle "IM"]
[WhiteFideId "1741160"]
[BlackFideId "1700359"]
[WhiteElo "1920"]
[BlackElo "2385"]

1. d4 {[%clk 00:15:08]} {[%emt 00:00:02]} Nf6 {[%clk 00:15:07]} {[%emt
00:00:03]} 2. c4 {[%clk 00:15:11]} {[%emt 00:00:03]} e6 {[%clk 00:15:08]}
{[%emt 00:00:03]} 3. Nc3 {[%clk 00:15:15]} {[%emt 00:00:02]} Bb4 {[%clk
00:15:11]} {[%emt 00:00:03]} 4. e3 {[%clk 00:15:18]} {[%emt 00:00:02]} O-O
{[%clk 00:15:10]} {[%emt 00:00:05]} 5. Nf3 {[%clk 00:15:21]} {[%emt 00:00:03]}
d5 {[%clk 00:15:08]} {[%emt 00:00:06]} 6. Bd3 {[%clk 00:15:11]} {[%emt
00:00:16]} c5 {[%clk 00:15:09]} {[%emt 00:00:04]} 7. O-O {[%clk 00:14:51]}
{[%emt 00:00:26]} Nc6 {[%clk 00:15:10]} {[%emt 00:00:03]} 8. a3 {[%clk
00:14:55]} {[%emt 00:00:01]} Bxc3 {[%clk 00:15:09]} {[%emt 00:00:06]} 9. bxc3
{[%clk 00:14:59]} {[%emt 00:00:01]} b6 {[%clk 00:15:07]} {[%emt 00:00:07]} 10.
Qe2 {[%clk 00:14:18]} {[%emt 00:00:46]} Na5 {[%clk 00:14:44]} {[%emt 00:00:27]}
11. Ne5 {[%clk 00:13:33]} {[%emt 00:00:51]} Ba6 {[%clk 00:13:22]} {[%emt
00:01:27]} 12. Bd2 {[%clk 00:11:59]} {[%emt 00:01:40]} dxc4 {[%clk 00:10:56]}
{[%emt 00:02:30]} 13. Nxc4 {[%clk 00:11:52]} {[%emt 00:00:12]} Nxc4 {[%clk
00:09:58]} {[%emt 00:01:04]} 14. Bxc4 {[%clk 00:11:55]} {[%emt 00:00:02]} Bxc4
{[%clk 00:10:01]} {[%emt 00:00:02]} 15. Qxc4 {[%clk 00:11:59]} {[%emt
00:00:01]} Rc8 {[%clk 00:09:17]} {[%emt 00:00:49]} 16. Qe2 {[%clk 00:09:51]}
{[%emt 00:02:12]} Qd7 {[%clk 00:07:15]} {[%emt 00:02:07]} 17. Rfc1 {[%clk
00:09:04]} {[%emt 00:00:53]} Rfd8 {[%clk 00:07:11]} {[%emt 00:00:08]} 18. Be1
{[%clk 00:08:11]} {[%emt 00:00:59]} Qa4 {[%clk 00:05:58]} {[%emt 00:01:17]} 19.
Qb2 {[%clk 00:07:04]} {[%emt 00:01:11]} Ne4 {[%clk 00:05:46]} {[%emt 00:00:17]}
20. f3 {[%clk 00:05:10]} {[%emt 00:02:01]} Nd6 {[%emt 00:00:01]} 21. Bf2 Nc4
{[%clk 00:05:32]} {[%emt 00:00:22]} 22. Qc2 {[%clk 00:05:01]} {[%emt 00:00:19]}
Qxc2 {[%clk 00:05:24]} {[%emt 00:00:13]} 23. Rxc2 {[%clk 00:05:05]} {[%emt
00:00:01]} e5 {[%clk 00:04:26]} {[%emt 00:01:03]} 24. Kf1 {[%clk 00:04:10]}
{[%emt 00:01:00]} f6 {[%clk 00:04:25]} {[%emt 00:00:06]} 25. a4 {[%clk
00:03:38]} {[%emt 00:00:38]} Na5 {[%clk 00:03:50]} {[%emt 00:00:39]} 26. Rac1
{[%clk 00:03:06]} {[%emt 00:00:37]} Kf7 {[%clk 00:03:49]} {[%emt 00:00:06]} 27.
g4 {[%clk 00:02:40]} {[%emt 00:00:32]} Rd7 {[%clk 00:02:43]} {[%emt 00:01:11]}
28. Kg2 {[%emt 00:00:10]} Rcd8 {[%clk 00:02:18]} {[%emt 00:00:28]} 29. Rd1
{[%clk 00:02:20]} {[%emt 00:00:21]} exd4 {[%clk 00:01:50]} {[%emt 00:00:34]} 30.
exd4 {[%clk 00:02:01]} {[%emt 00:00:24]} cxd4 {[%clk 00:01:53]} {[%emt
00:00:02]} 31. Rxd4 {[%clk 00:01:56]} {[%emt 00:00:09]} Nc6 {[%clk 00:01:28]}
{[%emt 00:00:29]} 32. Rxd7+ {[%clk 00:01:49]} {[%emt 00:00:13]} Rxd7 {[%clk
00:01:32]} 33. c4 {[%clk 00:01:52]} {[%emt 00:00:03]} Nb4 {[%clk 00:01:10]}
{[%emt 00:00:26]} 34. Rb2 {[%clk 00:01:43]} {[%emt 00:00:15]} Nd3 {[%clk
00:01:13]} {[%emt 00:00:01]} 35. Rb3 {[%clk 00:01:21]} {[%emt 00:00:23]} g5
{[%clk 00:01:07]} {[%emt 00:00:13]} 36. a5 {[%clk 00:01:16]} {[%emt 00:00:10]}
bxa5 {[%clk 00:00:46]} {[%emt 00:00:27]} 37. Ra3 {[%clk 00:01:20]} {[%emt
00:00:02]} Nf4+ {[%clk 00:00:24]} {[%emt 00:00:27]} 38. Kg3 {[%clk 00:01:02]}
{[%emt 00:00:22]} h5 {[%clk 00:00:27]} {[%emt 00:00:01]} 39. gxh5 {[%clk
00:01:06]} {[%emt 00:00:02]} Nxh5+ {[%clk 00:00:31]} {[%emt 00:00:01]} 40. Kg4
{[%clk 00:01:03]} {[%emt 00:00:08]} Kg6 {[%clk 00:00:34]} {[%emt 00:00:02]} 41.
Rxa5 {[%clk 00:01:00]} {[%emt 00:00:08]} f5+ {[%clk 00:00:37]} {[%emt
00:00:02]} 42. Kh3 {[%clk 00:00:52]} {[%emt 00:00:12]} Rd3 {[%clk 00:00:31]}
{[%emt 00:00:11]} 43. Ra6+ {[%clk 00:00:55]} {[%emt 00:00:02]} Nf6 {[%clk
00:00:34]} {[%emt 00:00:02]} 44. Kg2 {[%clk 00:00:56]} {[%emt 00:00:04]}
1/2-1/2

[Event "Kvibergspelen 2018"]
[Site "Prioritet Serneke Arena, Krutvagen 2, Gothenburg, Sweden"]
[Date "2018.04.20"]
[Round "1.7"]
[White "Ernst, Thomas"]
[Black "Wellevit, Tomas"]
[Result "1-0"]
[TimeControl "15 minutes + 5 seconds per move from move one (Round 1 - 4) / 90 minutes + 30 seconds per move from move one (Round 5 - 8)"]
[WhiteTitle "GM"]
[WhiteFideId "1700065"]
[BlackFideId "1731963"]
[WhiteElo "2366"]
[BlackElo "1918"]

1. e4 {[%clk 00:15:06]} {[%emt 00:00:05]} e6 {[%clk 00:14:59]} {[%emt
00:00:14]} 2. d4 {[%clk 00:15:09]} {[%emt 00:00:02]} d5 {[%clk 00:15:03]}
{[%emt 00:00:01]} 3. Nc3 {[%clk 00:15:12]} {[%emt 00:00:02]} Nf6 {[%clk
00:15:07]} {[%emt 00:00:01]} 4. Bg5 {[%clk 00:15:14]} {[%emt 00:00:03]} Be7
{[%clk 00:15:11]} {[%emt 00:00:01]} 5. e5 {[%clk 00:15:17]} {[%emt 00:00:02]}
Nfd7 {[%clk 00:15:16]} 6. Bxe7 {[%clk 00:15:20]} {[%emt 00:00:02]} Qxe7 {[%clk
00:15:20]} {[%emt 00:00:01]} 7. f4 {[%clk 00:15:21]} {[%emt 00:00:03]} Qh4+
{[%clk 00:15:20]} {[%emt 00:00:05]} 8. g3 {[%clk 00:15:23]} {[%emt 00:00:03]}
Qe7 {[%clk 00:15:20]} {[%emt 00:00:05]} 9. Nf3 {[%clk 00:15:25]} {[%emt
00:00:04]} a6 {[%clk 00:15:19]} {[%emt 00:00:06]} 10. Qd2 {[%clk 00:15:23]}
{[%emt 00:00:05]} b5 {[%clk 00:15:13]} {[%emt 00:00:12]} 11. Bd3 {[%clk
00:15:11]} {[%emt 00:00:16]} c5 {[%clk 00:15:18]} {[%emt 00:00:02]} 12. dxc5
{[%clk 00:15:08]} {[%emt 00:00:08]} Nxc5 {[%clk 00:15:22]} 13. Nd4 {[%clk
00:15:00]} {[%emt 00:00:12]} O-O {[%clk 00:15:00]} {[%emt 00:00:28]} 14. O-O-O
{[%clk 00:14:55]} {[%emt 00:00:09]} Bb7 {[%clk 00:14:33]} {[%emt 00:00:32]} 15.
Kb1 {[%clk 00:14:38]} {[%emt 00:00:22]} Nbd7 {[%clk 00:14:16]} {[%emt
00:00:22]} 16. Rhe1 {[%clk 00:14:00]} {[%emt 00:00:43]} Nxd3 {[%clk 00:14:20]}
{[%emt 00:00:02]} 17. cxd3 {[%clk 00:14:01]} {[%emt 00:00:04]} Qb4 {[%clk
00:12:55]} {[%emt 00:01:29]} 18. Nce2 {[%clk 00:13:44]} {[%emt 00:00:20]} Qc5
{[%clk 00:11:52]} {[%emt 00:01:10]} 19. Rc1 {[%clk 00:13:41]} {[%emt 00:00:09]}
Qb6 {[%clk 00:11:56]} {[%emt 00:00:01]} 20. Qb4 {[%clk 00:12:03]} {[%emt
00:01:41]} Rfc8 {[%clk 00:11:31]} {[%emt 00:00:30]} 21. Rxc8+ {[%clk 00:11:47]}
{[%emt 00:00:21]} Rxc8 {[%clk 00:11:35]} 22. Rc1 {[%clk 00:11:48]} {[%emt
00:00:03]} Rxc1+ {[%clk 00:11:10]} {[%emt 00:00:32]} 23. Kxc1 {[%clk 00:11:46]}
{[%emt 00:00:06]} h5 {[%clk 00:10:55]} {[%emt 00:00:20]} 24. Qe7 {[%clk
00:11:14]} {[%emt 00:00:33]} Qc5+ {[%clk 00:10:35]} {[%emt 00:00:29]} 25. Qxc5
{[%clk 00:11:17]} {[%emt 00:00:02]} Nxc5 {[%clk 00:10:39]} 26. Kd2 {[%clk
00:11:16]} {[%emt 00:00:05]} b4 {[%clk 00:10:30]} {[%emt 00:00:17]} 27. a3
{[%clk 00:10:50]} {[%emt 00:00:31]} bxa3 {[%clk 00:09:55]} {[%emt 00:00:40]} 28.
bxa3 {[%clk 00:10:53]} {[%emt 00:00:01]} Kf8 {[%clk 00:09:53]} {[%emt
00:00:06]} 29. Nc1 {[%clk 00:10:45]} {[%emt 00:00:13]} Ke7 {[%clk 00:09:47]}
{[%emt 00:00:12]} 30. Ncb3 {[%clk 00:10:46]} {[%emt 00:00:04]} Na4 {[%clk
00:09:51]} {[%emt 00:00:01]} 31. Nc2 {[%clk 00:10:29]} {[%emt 00:00:21]} Kd7
{[%clk 00:09:42]} {[%emt 00:00:15]} 32. Ke3 {[%clk 00:10:16]} {[%emt 00:00:16]}
Bc6 {[%clk 00:09:06]} {[%emt 00:00:42]} 33. Kd4 {[%clk 00:09:53]} {[%emt
00:00:28]} Bb5 {[%clk 00:09:10]} {[%emt 00:00:03]} 34. Nb4 {[%clk 00:09:32]}
{[%emt 00:00:24]} f6 {[%clk 00:08:25]} {[%emt 00:00:52]} 35. Nc5+ {[%clk
00:09:16]} {[%emt 00:00:21]} Nxc5 {[%clk 00:08:22]} {[%emt 00:00:08]} 36. Kxc5
{[%clk 00:09:19]} {[%emt 00:00:02]} Kc7 {[%clk 00:08:14]} {[%emt 00:00:13]} 37.
d4 {[%clk 00:08:55]} {[%emt 00:00:28]} fxe5 {[%clk 00:07:18]} {[%emt 00:01:02]}
38. fxe5 {[%clk 00:08:39]} {[%emt 00:00:21]} g6 {[%clk 00:07:06]} {[%emt
00:00:18]} 39. h4 {[%clk 00:08:29]} {[%emt 00:00:14]} Ba4 {[%clk 00:07:04]}
{[%emt 00:00:07]} 40. Nxa6+ {[%clk 00:08:26]} {[%emt 00:00:08]} Kb7 {[%clk
00:06:51]} {[%emt 00:00:19]} 41. Nb4 {[%clk 00:08:27]} {[%emt 00:00:03]} Kc7
{[%clk 00:06:55]} {[%emt 00:00:02]} 42. Nd3 {[%clk 00:08:23]} {[%emt 00:00:08]}
Bc2 {[%clk 00:06:41]} {[%emt 00:00:20]} 43. Nf4 {[%clk 00:08:23]} {[%emt
00:00:03]} 1-0

[Event "Kvibergspelen 2018"]
[Site "Prioritet Serneke Arena, Krutvagen 2, Gothenburg, Sweden"]
[Date "2018.04.20"]
[Round "1.8"]
[White "Fang, Andy"]
[Black "Arman, Deniz"]
[Result "1-0"]
[TimeControl "15 minutes + 5 seconds per move from move one (Round 1 - 4) / 90 minutes + 30 seconds per move from move one (Round 5 - 8)"]
[BlackTitle "FM"]
[WhiteFideId "1724630"]
[BlackFideId "6302106"]
[WhiteElo "1913"]
[BlackElo "2359"]

1. c4 {[%clk 00:15:08]} {[%emt 00:00:02]} Nf6 {[%clk 00:15:08]} {[%emt
00:00:02]} 2. g3 {[%clk 00:15:10]} {[%emt 00:00:03]} e5 {[%clk 00:15:11]}
{[%emt 00:00:02]} 3. Bg2 {[%clk 00:15:14]} {[%emt 00:00:02]} c6 {[%clk
00:15:13]} {[%emt 00:00:03]} 4. d4 {[%clk 00:15:17]} {[%emt 00:00:02]} d6
{[%clk 00:14:29]} {[%emt 00:00:49]} 5. Nc3 {[%clk 00:15:06]} {[%emt 00:00:16]}
Nbd7 {[%clk 00:14:20]} {[%emt 00:00:14]} 6. e3 {[%clk 00:15:08]} {[%emt
00:00:04]} Be7 {[%clk 00:13:56]} {[%emt 00:00:29]} 7. Nge2 {[%clk 00:15:11]}
{[%emt 00:00:02]} O-O {[%clk 00:13:58]} {[%emt 00:00:03]} 8. O-O {[%clk
00:15:13]} {[%emt 00:00:03]} a6 {[%clk 00:13:29]} {[%emt 00:00:35]} 9. b3
{[%clk 00:15:15]} {[%emt 00:00:03]} Re8 {[%clk 00:13:20]} {[%emt 00:00:13]} 10.
Bb2 {[%clk 00:15:18]} {[%emt 00:00:02]} Bf8 {[%clk 00:13:24]} {[%emt 00:00:02]}
11. Qc2 {[%clk 00:15:17]} {[%emt 00:00:06]} Qc7 {[%clk 00:12:28]} {[%emt
00:01:01]} 12. Rad1 {[%clk 00:15:11]} {[%emt 00:00:12]} b6 {[%clk 00:12:22]}
{[%emt 00:00:11]} 13. dxe5 {[%clk 00:14:51]} {[%emt 00:00:25]} dxe5 {[%clk
00:12:18]} {[%emt 00:00:09]} 14. Ne4 {[%clk 00:14:37]} {[%emt 00:00:19]} Bb7
{[%clk 00:11:35]} {[%emt 00:00:48]} 15. N2c3 {[%clk 00:14:23]} {[%emt
00:00:19]} h6 {[%clk 00:11:16]} {[%emt 00:00:23]} 16. a3 {[%clk 00:14:24]}
{[%emt 00:00:05]} b5 {[%clk 00:10:53]} {[%emt 00:00:28]} 17. c5 {[%clk
00:11:32]} {[%emt 00:02:57]} Rad8 {[%clk 00:05:59]} {[%emt 00:04:59]} 18. b4
{[%clk 00:11:34]} {[%emt 00:00:03]} a5 {[%clk 00:05:15]} {[%emt 00:00:48]} 19.
Nd6 {[%clk 00:10:50]} {[%emt 00:00:49]} Bxd6 {[%clk 00:05:15]} {[%emt
00:00:05]} 20. Rxd6 {[%clk 00:10:53]} {[%emt 00:00:02]} axb4 {[%clk 00:05:16]}
{[%emt 00:00:04]} 21. axb4 {[%clk 00:10:57]} {[%emt 00:00:01]} Nf8 {[%clk
00:04:50]} {[%emt 00:00:31]} 22. Rfd1 {[%clk 00:10:40]} {[%emt 00:00:22]} Ra8
{[%clk 00:04:32]} {[%emt 00:00:23]} 23. Qf5 {[%clk 00:09:42]} {[%emt 00:01:03]}
Re6 {[%clk 00:03:12]} {[%emt 00:01:25]} 24. Ne4 {[%clk 00:09:36]} {[%emt
00:00:11]} Nd5 {[%clk 00:01:59]} {[%emt 00:01:18]} 25. Rxe6 {[%clk 00:05:44]}
{[%emt 00:03:57]} Nxe6 {[%clk 00:00:57]} {[%emt 00:01:06]} 26. Bxe5 {[%clk
00:05:34]} {[%emt 00:00:15]} Qe7 {[%clk 00:00:45]} {[%emt 00:00:17]} 27. Nd6
{[%clk 00:04:15]} {[%emt 00:01:24]} g6 {[%clk 00:00:31]} {[%emt 00:00:20]} 28.
Qg4 {[%clk 00:03:52]} {[%emt 00:00:28]} h5 {[%clk 00:00:16]} {[%emt 00:00:19]}
29. Qe4 {[%clk 00:03:37]} {[%emt 00:00:19]} Ra4 {[%clk 00:00:16]} {[%emt
00:00:07]} 30. Bd4 {[%clk 00:02:17]} {[%emt 00:01:25]} Rxb4 {[%clk 00:00:13]}
{[%emt 00:00:08]} 31. Nxb7 {[%clk 00:02:15]} {[%emt 00:00:07]} Qxb7 {[%clk
00:00:16]} {[%emt 00:00:02]} 32. Qe5 {[%clk 00:02:19]} Nxd4 {[%clk 00:00:18]}
{[%emt 00:00:03]} 33. Bxd5 {[%clk 00:01:27]} {[%emt 00:00:57]} Ne2+ {[%clk
00:00:14]} {[%emt 00:00:09]} 34. Kf1 {[%clk 00:01:31]} cxd5 {[%clk 00:00:18]}
{[%emt 00:00:02]} 35. Kxe2 {[%clk 00:01:35]} {[%emt 00:00:01]} d4 {[%clk
00:00:16]} {[%emt 00:00:07]} 36. Rxd4 {[%clk 00:01:19]} {[%emt 00:00:21]} Rb2+
{[%clk 00:00:20]} 37. Rd2 {[%clk 00:01:23]} {[%emt 00:00:01]} Rxd2+ {[%clk
00:00:24]} {[%emt 00:00:01]} 38. Kxd2 {[%clk 00:01:27]} {[%emt 00:00:01]} b4
{[%clk 00:00:26]} {[%emt 00:00:03]} 39. Qe8+ {[%clk 00:01:21]} {[%emt
00:00:10]} Kh7 {[%clk 00:00:10]} {[%emt 00:00:21]} 40. c6 {[%clk 00:01:20]}
{[%emt 00:00:07]} Qa7 {[%clk 00:00:14]} 41. Qd7 {[%clk 00:01:15]} {[%emt
00:00:08]} Qa2+ {[%clk 00:00:18]} {[%emt 00:00:03]} 42. Kd3 {[%clk 00:01:10]}
{[%emt 00:00:10]} Qb3+ {[%clk 00:00:10]} {[%emt 00:00:13]} 43. Kd4 {[%clk
00:00:56]} {[%emt 00:00:19]} Qc3+ {[%clk 00:00:08]} {[%emt 00:00:08]} 44. Kd5
{[%clk 00:00:53]} {[%emt 00:00:07]} Qd2+ {[%clk 00:00:07]} {[%emt 00:00:07]} 45.
Kc5 {[%clk 00:00:54]} {[%emt 00:00:04]} Qxf2 {[%clk 00:00:07]} {[%emt
00:00:05]} 46. c7 {[%clk 00:00:52]} {[%emt 00:00:08]} Qxe3+ {[%clk 00:00:09]}
{[%emt 00:00:03]} 47. Kc6 {[%clk 00:00:43]} {[%emt 00:00:13]} Qe4+ {[%clk
00:00:11]} {[%emt 00:00:04]} 48. Kb6 {[%clk 00:00:30]} {[%emt 00:00:18]} Qe3+
{[%clk 00:00:12]} {[%emt 00:00:04]} 49. Kb7 {[%clk 00:00:33]} {[%emt 00:00:02]}
Qf3+ {[%clk 00:00:06]} {[%emt 00:00:11]} 50. Kb8 {[%clk 00:00:35]} {[%emt
00:00:03]} b3 {[%clk 00:00:10]} 51. c8=Q {[%clk 00:00:36]} {[%emt 00:00:03]} b2
{[%clk 00:00:15]} 52. Qcb7 {[%clk 00:00:37]} {[%emt 00:00:04]} b1=Q {[%clk
00:00:06]} {[%emt 00:00:13]} 53. Qxb1 {[%clk 00:00:21]} {[%emt 00:00:21]} Qf2
{[%clk 00:00:10]} {[%emt 00:00:02]} 54. Qbb7 {[%clk 00:00:18]} {[%emt
00:00:08]} Kg7 {[%clk 00:00:10]} {[%emt 00:00:05]} 55. Qdc7 {[%clk 00:00:15]}
{[%emt 00:00:08]} Qf5 {[%clk 00:00:06]} {[%emt 00:00:09]} 56. Qb2+ {[%clk
00:00:17]} {[%emt 00:00:03]} Kh7 {[%clk 00:00:09]} {[%emt 00:00:01]} 57. Qce5
{[%clk 00:00:18]} {[%emt 00:00:04]} 1-0

[Event "Kvibergspelen 2018"]
[Site "Prioritet Serneke Arena, Krutvagen 2, Gothenburg, Sweden"]
[Date "2018.04.20"]
[Round "1.9"]
[White "Rydstrom, Tom"]
[Black "Torngren, Gustav"]
[Result "0-1"]
[TimeControl "15 minutes + 5 seconds per move from move one (Round 1 - 4) / 90 minutes + 30 seconds per move from move one (Round 5 - 8)"]
[WhiteTitle "FM"]
[WhiteFideId "1714830"]
[BlackFideId "1728970"]
[WhiteElo "2357"]
[BlackElo "1906"]

1. d4 {[%clk 00:15:05]} {[%emt 00:00:04]} Nf6 {[%clk 00:15:08]} {[%emt
00:00:03]} 2. Nc3 {[%clk 00:15:09]} {[%emt 00:00:01]} c5 {[%clk 00:14:59]}
{[%emt 00:00:13]} 3. d5 {[%clk 00:12:41]} {[%emt 00:02:33]} e6 {[%clk
00:14:23]} {[%emt 00:00:41]} 4. e4 {[%clk 00:12:44]} {[%emt 00:00:01]} exd5
{[%clk 00:14:15]} {[%emt 00:00:14]} 5. exd5 {[%clk 00:12:48]} {[%emt 00:00:01]}
d6 {[%clk 00:14:19]} 6. Nf3 {[%emt 00:00:32]} Bg4 {[%clk 00:14:06]} 7. h3
{[%clk 00:12:00]} {[%emt 00:00:43]} Bxf3 {[%clk 00:14:09]} {[%emt 00:00:02]} 8.
Qxf3 {[%clk 00:12:03]} {[%emt 00:00:01]} Nbd7 {[%clk 00:14:03]} {[%emt
00:00:11]} 9. Bf4 {[%clk 00:12:04]} {[%emt 00:00:04]} Be7 {[%clk 00:13:41]}
{[%emt 00:00:27]} 10. Be2 {[%clk 00:11:56]} {[%emt 00:00:13]} a6 {[%clk
00:12:52]} {[%emt 00:00:53]} 11. a4 {[%clk 00:10:30]} {[%emt 00:01:31]} O-O
{[%clk 00:10:31]} {[%emt 00:02:26]} 12. O-O {[%clk 00:10:03]} {[%emt 00:00:32]}
Re8 {[%clk 00:10:28]} {[%emt 00:00:09]} 13. Rfe1 {[%clk 00:04:26]} {[%emt
00:05:42]} Nf8 {[%clk 00:10:17]} {[%emt 00:00:15]} 14. Bc4 {[%clk 00:02:28]}
{[%emt 00:02:03]} Ng6 {[%clk 00:10:11]} {[%emt 00:00:12]} 15. Bh2 {[%clk
00:02:31]} {[%emt 00:00:02]} Nd7 {[%clk 00:09:57]} {[%emt 00:00:18]} 16. Qh5
{[%clk 00:01:42]} {[%emt 00:00:54]} Nge5 {[%clk 00:09:04]} {[%emt 00:00:58]} 17.
Bf1 {[%clk 00:01:39]} {[%emt 00:00:08]} Nf6 {[%clk 00:08:30]} {[%emt 00:00:39]}
18. Qd1 {[%clk 00:01:34]} {[%emt 00:00:09]} Ng6 {[%clk 00:08:16]} {[%emt
00:00:20]} 19. f4 {[%clk 00:01:32]} {[%emt 00:00:07]} Bf8 {[%clk 00:08:10]}
{[%emt 00:00:11]} 20. Qf3 {[%clk 00:01:35]} {[%emt 00:00:02]} Qb6 {[%clk
00:07:54]} {[%emt 00:00:20]} 21. Kh1 {[%clk 00:00:21]} {[%emt 00:01:20]} Qc7
{[%clk 00:05:16]} {[%emt 00:02:44]} 22. g4 {[%clk 00:00:12]} {[%emt 00:00:13]}
Nd7 {[%clk 00:04:37]} {[%emt 00:00:44]} 23. g5 {[%clk 00:00:14]} {[%emt
00:00:03]} f6 {[%clk 00:04:13]} {[%emt 00:00:29]} 24. Bd3 {[%clk 00:00:14]}
{[%emt 00:00:05]} Ne7 {[%clk 00:03:52]} {[%emt 00:00:26]} 25. gxf6 {[%clk
00:00:13]} {[%emt 00:00:07]} Nxf6 {[%clk 00:03:56]} 26. Rg1 {[%clk 00:00:11]}
{[%emt 00:00:07]} Qd7 {[%clk 00:03:55]} {[%emt 00:00:05]} 27. Rg5 {[%clk
00:00:13]} {[%emt 00:00:03]} h6 {[%clk 00:03:54]} {[%emt 00:00:07]} 28. Rg2
{[%clk 00:00:15]} {[%emt 00:00:03]} Nf5 {[%clk 00:03:56]} {[%emt 00:00:03]} 29.
Bxf5 {[%clk 00:00:14]} {[%emt 00:00:05]} Qxf5 {[%clk 00:04:00]} {[%emt
00:00:01]} 30. Rag1 {[%clk 00:00:17]} Re7 {[%clk 00:03:53]} {[%emt 00:00:12]}
31. Rd2 {[%clk 00:00:09]} {[%emt 00:00:14]} Rae8 {[%clk 00:03:55]} {[%emt
00:00:04]} 32. Rgg2 {[%clk 00:00:09]} {[%emt 00:00:05]} Re1 {[%clk 00:03:54]}
{[%emt 00:00:06]} 33. Bg1 {[%clk 00:00:13]} {[%emt 00:00:01]} R8e3 {[%clk
00:03:50]} {[%emt 00:00:09]} 34. Qf2 {[%clk 00:00:11]} {[%emt 00:00:06]} Rxh3
{[%clk 00:03:37]} {[%emt 00:00:20]} 35. Rh2 {[%clk 00:00:15]} Rxh2 {[%emt
00:00:04]} 36. Qxh2 {[%emt 00:00:01]} Rf1 {[%clk 00:02:53]} {[%emt 00:00:50]}
37. Rf2 {[%clk 00:00:09]} {[%emt 00:00:16]} Ng4 {[%clk 00:02:45]} {[%emt
00:00:13]} 38. Rxf1 {[%clk 00:00:11]} {[%emt 00:00:03]} Nxh2 {[%clk 00:02:47]}
{[%emt 00:00:02]} 39. Bxh2 {[%clk 00:00:09]} {[%emt 00:00:07]} Qxc2 {[%clk
00:02:50]} {[%emt 00:00:03]} 40. f5 {[%clk 00:00:11]} {[%emt 00:00:03]} Qxb2
{[%clk 00:02:45]} {[%emt 00:00:10]} 41. Ne4 {[%clk 00:00:12]} {[%emt 00:00:04]}
Qe2 {[%clk 00:02:36]} {[%emt 00:00:14]} 42. Ng3 {[%clk 00:00:16]} {[%emt
00:00:01]} Qc4 {[%clk 00:02:36]} {[%emt 00:00:04]} 43. Rd1 {[%clk 00:00:06]}
{[%emt 00:00:15]} Qxa4 {[%clk 00:02:37]} {[%emt 00:00:04]} 44. Rd2 {[%clk
00:00:10]} b5 {[%clk 00:02:32]} {[%emt 00:00:10]} 45. f6 {[%clk 00:00:08]}
{[%emt 00:00:07]} gxf6 {[%clk 00:02:33]} {[%emt 00:00:04]} 46. Rg2 {[%clk
00:00:09]} {[%emt 00:00:04]} Kf7 {[%clk 00:02:34]} {[%emt 00:00:04]} 0-1